Cogmind - Beta 9.6 @@@ ROGUE MODE // 2020.08.22 @ 10:30:34 Player: Ketemphor Result: Destroyed by Y-45 Defender with Heavy Assault Rifle Performance ------------- Evolutions (2) 1000 Regions Visited (3) 600 Robots Destroyed (6) 30 Value Destroyed (204) 204 Prototype IDs (0) 0 Alien Tech Used (0) 0 Bonus (0) 0 TOTAL SCORE: 1834 Bonus ------- None Cogmind --------- Core Integrity 0/550 Matter 214/300 Energy 100/100 System Corruption 0% Temperature Cool (9) Movement Core (200) Ox3 Location -8/Materials Parts ------- > --- POWER (1) -------- (None) > --- PROPULSION (3) --- (None) > --- UTILITY (5) ------ Medium Storage Unit > --- WEAPON (2) ------- Katana > --- INVENTORY (8) ---- Hardlight Generator Particle Cannon Assault Rifle Assault Rifle Improved Datajack Peak State ------------ > --- POWER ------------ Ion Engine > --- PROPULSION ------- Armored Huge Wheel > --- UTILITY ---------- Heat Sink Improved Heat Sink Medium Storage Unit Weapon Cycler Shield Generator > --- WEAPON ----------- Particle Cannon Particle Cannon > --- INVENTORY -------- Ion Engine Armored Huge Wheel Assault Rifle Assault Rifle Grenade Launcher Improved Datajack [Rating: 25] Favorites ----------- Power Ion Engine Engine Ion Engine Propulsion Improved Hover Unit Leg Aluminum Leg Wheel Armored Huge Wheel Hover Unit Improved Hover Unit Utility Medium Storage Unit Device Heat Sink Storage Medium Storage Unit Weapon Assault Rifle Energy Cannon Particle Cannon Ballistic Gun Assault Rifle Launcher Grenade Launcher Slashing Weapon Katana Build | -11 -10 -9 -8 ------- Run | Scr Mat Mat Mat Slots Evolved 4 | . . 2 2 Power . | . . . . Propulsion 1 | . . 1 . Utility 3 | . . 1 2 Weapon . | . . . . Parts Attached 24 | 1 11 4 8 Power 1 | . . . 1 Engine 1 | . . . 1 Core . | . . . . Reactor . | . . . . Propulsion 9 | . 6 1 2 Treads . | . . . . Leg 2 | . 2 . . Wheel 2 | . . . 2 Hover 5 | . 4 1 . Flight . | . . . . Utility 7 | . 3 1 3 Device 6 | . 2 1 3 Storage 1 | . 1 . . Processor . | . . . . Hackware . | . . . . Protection . | . . . . Artifact . | . . . . Weapon 7 | 1 2 2 2 Energy Gun . | . . . . Energy Cannon 2 | . . 2 . Ballistic Gun 2 | 1 1 . . Ballistic Cannon . | . . . . Launcher 2 | . 1 . 1 Special Weapon . | . . . . Impact Weapon . | . . . . Slashing Weapon 1 | . . . 1 Piercing Weapon . | . . . . Special Melee Weapon . | . . . . Unidentified Prototypes . | . . . . Parts Lost 11 | . . . 11 Power 2 | . . . 2 Propulsion 2 | . . . 2 Utility 5 | . . . 5 Weapon 2 | . . . 2 Highest Loss Streak 11 | . . . 11 Average Slot Usage (%) 85 | . 95 100 67 Engine 11 | . 14 11 7 Leg 6 | . 14 . . Wheel 1 | . . . 5 Hover 15 | . 13 33 9 Device 17 | . 10 22 23 Storage 11 | . 14 11 9 Energy Cannon 7 | . . 19 11 Ballistic Gun 10 | . 22 1 . Launcher 2 | . 5 1 . Naked Turns . | . . . . Heaviest Build 26 | 13 19 24 26 Greatest Support 28 | 20 20 24 28 Greatest Overweight (x) 6 | . 3 . 6 Average Overweight (x) . | . . . . Largest Inventory Capacity 8 | 6 8 8 8 Average Capacity 7 | 6 6 8 8 Most Carried 8 | 5 8 7 8 Average Carried 5 | 4 6 6 5 Final Capacity 8 | 6 8 8 8 Final Carried 8 | 4 8 6 5 Class Distribution -------------------- 100% | Mutant Dominant Class ---------------- Mutant | -10/Materials Mutant | -9/Materials Mutant | -8/Materials Resources | -11 -10 -9 -8 ----------- Run | Scr Mat Mat Mat Matter Collected 359 | 210 58 . 91 Remotely . | . . . . Salvage Created 157 | . 72 . 85 Parts 9 | . 4 . 5 Haulers Intercepted . | . . . . Recyclers Shooed . | . . . . Parts Field Recycled . | . . . . Retrieved Matter . | . . . . Parts Self-Destructed . | . . . . Prevented . | . . . . Kills | -11 -10 -9 -8 ------- Run | Scr Mat Mat Mat Combat Hostiles Destroyed 6 | . 2 . 4 Melee 1 | . . . 1 Cannons 2 | . . . 2 AOE 3 | . 2 . 1 Classes Destroyed 3 | . 1 . 2 Swarmer 2 | . . . 2 Grunt 3 | . 2 . 1 Brawler 1 | . . . 1 Best Kill Streak 2 | . 2 . 2 Combat Bots Only 2 | . 2 . 2 Max Kills in Single Turn 1 | . 1 . 1 Gunslinging . | . . . . Exploded 1 | . 1 . 1 Melee 1 | . . . 1 Uniques/NPCs Destroyed . | . . . . Combat | -11 -10 -9 -8 -------- Run | Scr Mat Mat Mat Damage Taken 1759 | . 144 92 1523 Core 563 | . . 7 556 Absorbed by Shields 104 | . . 34 70 Core Remaining (%) 99 | 100 100 98 . Volleys Fired 9 | . 2 . 7 Largest 2 | . 1 . 2 Hottest 136 | . 30 . 136 Shots Fired 12 | . 2 . 10 Gun . | . . . . Cannon 6 | . . . 6 Launcher 6 | . 2 . 4 Special . | . . . . Kinetic . | . . . . Thermal 6 | . . . 6 Explosive 6 | . 2 . 4 Electromagnetic . | . . . . Robot Hit Streak 6 | . 2 . 6 Robot Miss Streak 1 | . . . 1 Penetration Max . | . . . . Secondary Targets . | . . . . Shots Hit Robots 17 | . 2 . 15 Core Hits 14 | . 4 . 10 Critical Hits . | . . . . Critical Kills . | . . . . Critical Parts Destroyed . | . . . . Melee Attacks 10 | . . . 10 Impact . | . . . . Slashing 10 | . . . 10 Piercing . | . . . . Sneak Attacks . | . . . . Combat Hostiles . | . . . . Follow-up Attacks . | . . . . Damage Inflicted 734 | . 119 . 615 Guns . | . . . . Cannons 81 | . . . 81 Explosions 386 | . 119 . 267 Melee 267 | . . . 267 Ramming . | . . . . Kinetic . | . . . . Thermal 81 | . . . 81 Explosive 386 | . 119 . 267 Electromagnetic . | . . . . Impact . | . . . . Slashing 267 | . . . 267 Piercing . | . . . . Highest Corruption . | . . . . Average Corruption . | . . . . Corruption Purged . | . . . . Overload Shots . | . . . . Overflow Damage 4 | . . . 4 Projectiles 1 | . . . 1 Explosions . | . . . . Melee 3 | . . . 3 Knockbacks . | . . . . Impact . | . . . . Kinetic . | . . . . Secondary . | . . . . Self-Inflicted Damage 11 | . . . 11 Shots 2 | . . . 2 Rammed . | . . . . Targets Rammed . | . . . . Kicked . | . . . . Crushed . | . . . . Highest Temperature 12 | . . . 12 Average Temperature 9 | . . . 9 Received Heat Transfer 591 | . 81 . 510 Siege Activations . | . . . . Robots Corrupted . | . . . . Combat Hostiles . | . . . . Parts Fried . | . . . . Impact Corruptions . | . . . . Robots Melted . | . . . . Combat Hostiles . | . . . . Parts Melted . | . . . . Heat Transferred 148 | . . . 148 Parts Sabotaged . | . . . . Parts Stolen . | . . . . Parts Stripped . | . . . . Power Chain Reactions . | . . . . Missiles Intercepted . | . . . . Alert | -11 -10 -9 -8 ------- Run | Scr Mat Mat Mat Peak Influence 176 | . 110 76 176 Average Influence 70 | . 45 57 110 Maximum Alert Level . | . . . . Low Security (%) 100 | 100 100 100 100 Level 1 . | . . . . Level 2 . | . . . . Level 3 . | . . . . Level 4 . | . . . . Level 5 . | . . . . High Security . | . . . . Max Security . | . . . . Squads Dispatched 3 | . 1 1 1 Investigation . | . . . . Extermination . | . . . . Reinforcement 3 | . 1 1 1 Assault . | . . . . Garrison . | . . . . Intercept . | . . . . Construction Impeded . | . . . . Haulers Reinforced . | . . . . Stealth | -11 -10 -9 -8 --------- Run | Scr Mat Mat Mat Distress Signals 2 | . . 1 1 Communications Jammed . | . . . . Distress Signals . | . . . . Times Spotted 36 | . 8 7 21 Peak Tracking Total 11 | . 5 6 11 Tactical Retreats 5 | . . 2 3 Traps | -11 -10 -9 -8 ------- Run | Scr Mat Mat Mat Traps Triggered 2 | . 1 . 1 Indirectly . | . . . . Trap Hack Attempts . | . . . . Triggered . | . . . . Disarmed . | . . . . Reprogrammed . | . . . . Reused . | . . . . Traps Extracted . | . . . . Installed . | . . . . Triggered . | . . . . Machines | -11 -10 -9 -8 ---------- Run | Scr Mat Mat Mat Machines Disabled 2 | . 1 . 1 Max in Single Turn 1 | . 1 . 1 Machines Sabotaged . | . . . . Garrisons Compromised . | . . . . Overloaded Fab Kills . | . . . . Fab Network Shutdowns . | . . . . Hacking | -11 -10 -9 -8 --------- Run | Scr Mat Mat Mat Machines Accessed 2 | . . . 2 Terminals 2 | . . . 2 Fabricators . | . . . . Repair Stations . | . . . . Recycling Units . | . . . . Scanalyzers . | . . . . Garrison Access . | . . . . Total Hacks 7 | . . . 7 Successful 3 | . . . 3 Failed 4 | . . . 4 Catastrophic 1 | . . . 1 Database Lockouts . | . . . . Manual . | . . . . Terminals 7 | . . . 7 Fabricators . | . . . . Repair Stations . | . . . . Recycling Units . | . . . . Scanalyzers . | . . . . Garrison Access . | . . . . Terminal Hacks 3 | . . . 3 Terminal Index 1 | . . . 1 Dispatch Records 2 | . . . 2 Fabricator Hacks . | . . . . Repair Station Hacks . | . . . . Recycling Unit Hacks . | . . . . Scanalyzer . | . . . . Garrison Access Hacks . | . . . . Unauthorized Hacks . | . . . . Terminals . | . . . . Fabricators . | . . . . Repair Stations . | . . . . Recycling Units . | . . . . Scanalyzers . | . . . . Garrison Access . | . . . . Data Cores Recovered . | . . . . Used . | . . . . Hacking Detections 2 | . . . 2 Full Trace Events . | . . . . Feedback Events . | . . . . Feedback Blocked . | . . . . Robot Schematics Acquired . | . . . . Robots Built . | . . . . Matter . | . . . . Time . | . . . . Total Robot Build Rating . | . . . . Part Schematics Acquired . | . . . . Parts Built . | . . . . Matter . | . . . . Time . | . . . . Total Part Build Rating . | . . . . Parts Repaired . | . . . . Time . | . . . . Parts Recycled . | . . . . Recycled Matter . | . . . . Retrieved Matter . | . . . . Retrieved Components . | . . . . Parts Scanalyzed . | . . . . Part Schematics Acquired . | . . . . Parts Damaged . | . . . . Bothacking | -11 -10 -9 -8 ------------ Run | Scr Mat Mat Mat Used RIF Installer . | . . . . Robots Hacked . | . . . . Non-combat . | . . . . Combat . | . . . . Robot Hacks Applied . | . . . . Relay Couplers Released . | . . . . Robots Rewired . | . . . . Allies Hacked . | . . . . Hacks Repelled . | . . . . Allies | -11 -10 -9 -8 -------- Run | Scr Mat Mat Mat Total Allies . | . . . . Largest Group . | . . . . Highest-Rated Group . | . . . . Highest-Rated Ally . | . . . . Total Orders . | . . . . Ally Attacks . | . . . . Total Damage . | . . . . Kills . | . . . . Allies Corrupted . | . . . . Allies Melted . | . . . . Intel | -11 -10 -9 -8 ------- Run | Scr Mat Mat Mat Robot Analysis Total . | . . . . Derelict Logs Recovered . | . . . . Drone Launches . | . . . . Drone Recoveries . | . . . . Exploration | -11 -10 -9 -8 ------------- Run | Scr Mat Mat Mat Turns Passed 601 | 7 278 98 218 Spaces Moved 538 | 4 216 172 146 Core 4 | . 1 . 3 Treads . | . . . . Legs 106 | 4 102 . . Wheels 83 | . . . 83 Hover 345 | . 113 172 60 Flight . | . . . . Fastest Speed 52 | 120 56 52 100 Average Speed 91 | 120 111 52 108 Slowest Speed 350 | 120 200 52 350 Overloaded Moves . | . . . . Propulsion Burnouts . | . . . . Robots Hopped . | . . . . Cave-ins Triggered . | . . . . Exploration Rate (%) 20 | 2 38 18 22 Regions Visited 3 Branch Regions . Pre-discovered Areas . | . . . . Known Exits Taken . | . . . . Unknown Exits Taken 3 | 1 1 1 . Scrap Searched . | . . . . Spaces Dug . | . . . . Terrain Destroyed 29 | . 15 . 14 Melee . | . . . . Projectile . | . . . . AOE 29 | . 15 . 14 Actions | -11 -10 -9 -8 --------- Run | Scr Mat Mat Mat Total 618 | 6 250 179 183 Wait 15 | . 8 4 3 Move 535 | 3 215 171 146 Hop . | . . . . Pick Up 11 | . 7 . 4 Fast Attach 7 | . 4 . 3 Attach 6 | . . 2 4 Detach 1 | . . . 1 Swap 11 | 1 7 2 1 Drop 13 | 2 7 . 4 Fire 9 | . 2 . 7 Melee 10 | . . . 10 Ram . | . . . . Kick . | . . . . Crush . | . . . . Escape Stasis . | . . . . Rewire . | . . . . Trap . | . . . . Miscellaneous . | . . . . Route ------- -11/Scrapyard -10/Materials -9/Materials -8/Materials (discovered 1 exit: [*Sto]) History --------- Turn | Location | Event 4 | -11/Scrapyard | Discovered new exit (range 3) 8 | -11/Scrapyard | Entered Materials 252 | -10/Materials | Discovered new exit (range 16) 286 | -10/Materials | Entered another Materials area 286 | -9/Materials | Evolved 2 slots: Propulsion x1, Utility x1 318 | -9/Materials | Build established: Mutant 383 | -9/Materials | Discovered new exit (range 4) 384 | -9/Materials | Entered another Materials area 384 | -8/Materials | Evolved 2 slots: Utility x2 536 | -8/Materials | Discovered new exit (range 10) 588 | -8/Materials | Core integrity fell below 50% 600 | -8/Materials | Core integrity fell below 20% 602 | -8/Materials | Destroyed by Y-45 Defender with Heavy Assault Rifle Last Messages --------------- 00525_ Acquired 35 matter. 00526_ U-05 Engineer builds a Wall. 00526_ Particle Cannon destroyed. 00529_ U-05 Engineer lays Concrete. 00536_ EXIT=FOUND 00537_ U-05 Engineer lays Concrete. 00542_ Acquired Hardlight Generator. 00542_ K-01 Serf collects debris. 00544_ Acquired Hardlight Generator. 00552_ Arm. Huge Wheel destroyed. 00554_ S-10 Pest destroyed. 00556_ Hardlight Generator destroyed. 00566_ K-01 Serf cleans the Scanalyzer. 00572_ Acquired Katana. 00578_ Heat Sink destroyed. 00583_ Ion Engine destroyed. 00586_ G-47 Trooper destroyed. 00591_ Destroyed Heat Sink. 00597_ Arm. Huge Wheel destroyed. 00601_ Weapon Cycler destroyed. Map ----- +----------------------------------------------------+ | ??# # ## #????????????????????????? | | ??######## # " " #????????????????????????? | | ???????## ! "" #????????????????????????? | | ???????## " " #????????????????????????? | | ????????# = * #????????????????????????? | | ????????# / #????????????????????????? | | ????????# | #????????????????????????? | | ????????## #????????????????????????? | | ?????????# ## ###????????????????????????? | | ?????????# ##########??????????????????????????? | | ?????????# #???###?????????????????????????????? | | ?????????# ##### #####?????????????????????????? | | #????????# # #?????????????????????????? | | # #### # """ """ #?#######?????????????????? | | # # """ """ #?# "" #?????????????????? | | # < / """ """ #?# ""S #?????????????????? | | # # = #?# "" #?????????????????? | | # ###+#### %[ ### #?????????????????? | | ## ????????# *!! + / = #?????????????????? | | ?# ?????????# ! *### !#?????????????????? | | ?# ??????????###########?# = #?????????????????? | | ?#?????????????????##########+#######????????????? | | ???????????????????# # ?????? | | ???????????????????# ] # #########????????????? | | ???????????????????# YYg # #????????????????????? | | ???????????????????# g g@/ #????????????????????? | | ???????????????????# s Y#a#????????????????????? | | ???????????????????# * g # #????????????????????? | | ???????????????????######## #????????????????????? | | ??????????????????????????# #????????????????????? | | ??????????????????????????+ #????????????????????? | | ??????????????????????????# #????????????????????? | | ??????????????????????????# #????????????????????? | | ??????????????????????????? ?????????????????????? | | ??????????????????????????? ?????????????????????? | | ??????????????????????????? ?????????????????????? | | ??????????????????????????? ?????????????????????? | | ??????????????????????????? ?????????????????????? | | ??????????????????????????? ?????????????????????? | | ??????????????????????????? ?????????????????????? | | ?????????????????????????????????????????????????? | | ?????????????????????????????????????????????????? | | ?????????????????????????????????????????????????? | | ?????????????????????????????????????????????????? | | ?????????????????????????????????????????????????? | | ?????????????????????????????????????????????????? | | ?????????????????????????????????????????????????? | | ?????????????????????????????????????????????????? | | ?????????????????????????????????????????????????? | | ?????????????????????????????????????????????????? | +----------------------------------------------------+ Best States ------------- Heat Dissipation 55 Energy Generation 10 Energy Capacity 250 Matter Stores 300 Matter Capacity 300 Sight Range 16 Terrain Scan Density 10 Weapon Cycling 15 Evasion (%) 54 Item Schematics ----------------- None Robot Schematics ------------------ None Fabricated ------------ Nothing Alien Tech Used ----------------- None Achievements -------------- None Challenges ------------ None Game ------ Seed PhaseNuclearNukerbomber Manual? 0 Play Time 00:20:42 Cumulative 27.6 hours Start 2020.08.22 @ 10:12:53 End 2020.08.22 @ 10:30:34 Sessions 1 Manual Loads 0 Difficulty Rogue Special Mode None Game No. 2 Rogue 2 Adventurer 0 Explorer 0 Win Type - Total 0 Types 0/0/0/0/0/0/0 Lore% 7 Gallery% 30 Achievement% 24 Wizard Run 0 Options --------- ASCII 0 Keyboard 1 Movement Numpad Keybinds 0 Fullscreen 1 Font 18/SmallcapsGlow Map View 76x50 Tactical HUD 1 Map Filters NONE Filters NONE Steam 1 RUN: c9945ea8-0b3c-4a44-ae8a-7868ad0ce36d